fUST/lending_fUST_20250708
["ID","MTS","AMOUNT","RATE_DAILY","PERIOD"]
[370227301,1751917851949,-151.0,0.00021779,2]
[370227303,1751917851959,-151.0,0.00021779,2]
[370227305,1751917851968,-316.2352746,0.00021863,2]
[370227307,1751917851978,-2410.0,0.00021875,2]
[370227309,1751917851987,-158.4,0.00021884,5]
[370227311,1751917851996,-151.0,0.000219,3]
[370227313,1751917852006,-427.18,0.00021917,2]
[370227315,1751917852016,-460.0,0.00021917,2]
[370227317,1751917852025,-475.2,0.00021917,2]
[370227319,1751917852034,-460.0,0.00021917,2]
[370227321,1751917852043,-1961.94,0.00021917,2]
[370227323,1751917852053,-460.0,0.00021917,2]
[370227325,1751917852062,-1121.76,0.00021917,2]
[370227327,1751917852071,-460.0,0.00021917,2]
[370227329,1751917852081,-772.99,0.00021917,2]
[370227331,1751917852090,-909.79,0.00021917,2]
[370227333,1751917852099,-1136.17,0.00021917,2]
[370227335,1751917852108,-1463.16,0.00021917,2]
[370227337,1751917852117,-813.04,0.00021917,2]
[370227339,1751917852127,-1159.48,0.00021917,2]
[370227341,1751917852138,-871.71,0.00021917,2]
[370227343,1751917852148,-904.53,0.00021917,2]
[370227345,1751917852158,-460.0,0.00021917,2]
[370227347,1751917852167,-460.0,0.00021917,2]
[370227349,1751917852176,-1153.31,0.00021917,2]
[370227351,1751917852186,-460.0,0.00021917,2]
[370227353,1751917852195,-460.0,0.00021917,2]
[370227355,1751917852205,-1817.98,0.00021917,2]
[370227357,1751917852214,-2903.1,0.00021917,2]
[370227359,1751917852224,-187.890507,0.00021917,2]
[370227361,1751917852233,-531.0,0.00021917,2]
[370227363,1751917852242,-460.0,0.00021917,2]
[370227365,1751917852252,-527.16,0.00021917,2]
[370227367,1751917852261,-936.21,0.00021917,2]
[370227369,1751917852270,-1377.51,0.00021917,2]
[370227371,1751917852280,-2456.52,0.00021917,2]
[370227373,1751917852292,-928.84,0.00021917,2]
[370227375,1751917852301,-151.0,0.00021918,2]
[370227377,1751917852311,-272.316701,0.00021918,2]
[370227379,1751917852320,-410.25047172,0.00021918,7]
[370227381,1751917852329,-343.91375686,0.00021918,2]
[370227383,1751917852338,-500.0,0.00021918,2]
[370227385,1751917852348,-500.0,0.00021918,2]
[370227387,1751917852357,-500.0,0.00021918,2]
[370227389,1751917852366,-446.17110826,0.00021918,2]
[370227391,1751917852375,-500.0,0.00021918,2]
[370227393,1751917852384,-334.07333211,0.00021918,2]
[370227395,1751917852395,-500.0,0.00021918,2]
[370227397,1751917852405,-500.0,0.00021918,2]
[370227399,1751917852414,-514.5841109,0.00021918,2]
[370227401,1751917852423,-2639.25284612,0.00021934,6]
[370227403,1751917852432,-151.0,0.00021935,7]
[370227405,1751917852441,-244.665713,0.00021935,7]
[370227407,1751917852451,-244.665713,0.00021935,7]
[370227409,1751917852462,-152.58852,0.00021935,7]
[370227411,1751917852471,-165.20925407,0.00021945,2]
[370227413,1751917852480,-215.0738,0.00021945,2]
[370227415,1751917852490,-1786.531264,0.00021952,4]
[370227417,1751917852499,-503.98954517,0.00022,8]
[370227419,1751917852508,-151.0,0.00022,7]
[370227421,1751917852518,-8000.0,0.00022,2]
[370227423,1751917852527,-151.0,0.00022,7]
[370227425,1751917852536,-151.0,0.00022,7]
[370227427,1751917852545,-151.0,0.00022,7]
[370227429,1751917852554,-151.0,0.00022,7]
[370227431,1751917852564,-151.0,0.00022,7]
[370227433,1751917852573,-151.0,0.00022,7]
[370227435,1751917852582,-243.070235,0.00022,7]
[370227437,1751917852591,-243.070235,0.00022,7]
[370227439,1751917852601,-151.0,0.00022,7]
[370227441,1751917852610,-151.0,0.00022,7]
[370227443,1751917852620,-151.0,0.00022,7]
[370227445,1751917852630,-259.101356,0.00022,7]
[370227447,1751917852641,-278.291369,0.00022,7]
[370227449,1751917852651,-259.101356,0.00022,7]
[370227451,1751917852660,-278.291369,0.00022,7]
[370227453,1751917852670,-602.541065,0.00022,7]
[370227455,1751917852679,-602.541065,0.00022,7]
[370227457,1751917852689,-151.0,0.00022,7]
[370227459,1751917852699,-151.0,0.00022,7]
[370227461,1751917852708,-151.0,0.00022,7]
[370227463,1751917852717,-151.0,0.00022,7]
[370227465,1751917852726,-214.06929976,0.00022,7]
[370227467,1751917852736,-166.696433,0.00022,7]
[370227469,1751917852745,-166.696433,0.00022,7]
[370227471,1751917852755,-848.27993403,0.00022,7]
[370227473,1751917852764,-245.119118,0.00022,7]
[370227475,1751917852774,-245.119118,0.00022,7]
[370227477,1751917852783,-151.0,0.00022,4]
[370227479,1751917852792,-12584.46609586,0.00022,7]
[370227481,1751917852801,-37027.97406435,0.00022,7]
[370227485,1751917852823,-1541.8136322,0.00022,7]
[370227500,1751917852965,-539.55592529,0.00019726,2]
[370227502,1751917852977,-55.78407471,0.00019726,2]
[370227504,1751917852987,-595.34,0.0002,2]
[370227506,1751917852996,-595.34,0.00020273,2]
[370227508,1751917853006,-595.34,0.00020547,2]
[370227510,1751917853015,-595.34,0.00020821,2]
[370227512,1751917853024,-595.34,0.00021095,2]
[370227514,1751917853034,-2666.04,0.000216,2]
[370227516,1751917853043,-11935.08003896,0.00022,7]
[370227518,1751917853054,-284.16742104,0.00022,7]
[370227521,1751917853070,-595.34,0.00021369,2]
[370227523,1751917853079,-4067.26348005,0.00022,7]
[370227525,1751917853091,-920.0,0.00022,7]
[370227528,1751917853102,-2118.1913634,0.00022,7]
[370227530,1751917853111,-166.0,0.00022,2]
[370227532,1751917853120,-151.0,0.000221,7]
[370227534,1751917853130,-2639.25284612,0.00022107,6]
[370227536,1751917853140,-168.0,0.00022108,2]
[370227538,1751917853149,-168.0,0.00022139,2]
[370227540,1751917853158,-726.95919418,0.00022148,2]
[370227542,1751917853167,-6879.23363881,0.00022176,2]
[370227544,1751917853176,-2160.2,0.00022176,2]
[370227546,1751917853185,-152.71345,0.00022176,7]
[370227548,1751917853194,-151.0,0.00022176,7]
[370227550,1751917853203,-151.0,0.00022177,7]
[370227552,1751917853213,-151.0,0.00022177,7]
[370227553,1751917853221,-247.318958,0.00022177,7]
[370227555,1751917853231,-244.665713,0.00022177,7]
[370227557,1751917853240,-244.665713,0.00022177,7]
[370227559,1751917853249,-244.665713,0.00022177,7]
[370227561,1751917853258,-244.665713,0.00022177,7]
[370227563,1751917853267,-1743.418806,0.0002218,5]
[370227565,1751917853277,-500.0,0.0002219,10]
[370227567,1751917853286,-158.81,0.00022191,17]
[370227569,1751917853295,-151.0,0.00022191,7]
[370227571,1751917853305,-183.529365,0.00022191,7]
[370227573,1751917853314,-460.0,0.00022191,2]
[370227575,1751917853323,-460.0,0.00022191,2]
[370227577,1751917853333,-1961.94,0.00022191,2]
[370227579,1751917853343,-460.0,0.00022191,2]
[370227581,1751917853353,-1121.76,0.00022191,2]
[370227583,1751917853362,-343.09,0.00022191,2]
[370227585,1751917853372,-772.99,0.00022191,2]
[370227587,1751917853381,-909.79,0.00022191,2]
[370227589,1751917853391,-1136.17,0.00022191,2]
[370227591,1751917853400,-1463.16,0.00022191,2]
[370227593,1751917853409,-813.04,0.00022191,2]
[370227595,1751917853419,-1159.48,0.00022191,2]
[370227597,1751917853428,-871.71,0.00022191,2]
[370227599,1751917853438,-904.53,0.00022191,2]
[370227601,1751917853449,-460.0,0.00022191,2]
[370227603,1751917853458,-460.0,0.00022191,2]
[370227605,1751917853468,-1153.31,0.00022191,2]
[370227607,1751917853477,-460.0,0.00022191,2]
[370227609,1751917853488,-1817.98,0.00022191,2]
[370227611,1751917853497,-460.0,0.00022191,2]
[370227613,1751917853509,-2903.1,0.00022191,2]
[370227626,1751917853617,-531.0,0.00022191,2]
[370227628,1751917853627,-460.0,0.00022191,2]
[370227630,1751917853638,-527.16,0.00022191,2]
[370227632,1751917853647,-936.21,0.00022191,2]
[370227634,1751917853657,-1377.51,0.00022191,2]
[370227636,1751917853666,-2011.55280837,0.00022191,2]
[370227638,1751917853678,-444.96719163,0.00022191,2]
[370227640,1751917853688,-928.84,0.00022191,2]
[370227642,1751917853697,-166.0,0.00022192,7]
[370227644,1751917853707,-151.0,0.000222,7]
[370227646,1751917853716,-151.0,0.000222,8]
[370227648,1751917853725,-588.59280846,0.000222,5]
[370227670,1751917853939,-460.0,0.00019178,2]
[370227672,1751917853950,-460.0,0.00019178,2]
[370227674,1751917853959,-460.0,0.00019452,2]
[370227676,1751917853968,-460.0,0.00019452,2]
[370227678,1751917853978,-515.97,0.00019726,2]
[370227680,1751917853987,-460.0,0.00019726,2]
[370227682,1751917853997,-460.0,0.0002,2]
[370227684,1751917854006,-111.54674735,0.00020273,2]
[370227686,1751917854021,-348.45325265,0.00020273,2]
[370227688,1751917854030,-460.0,0.00020547,2]
[370227690,1751917854041,-595.34,0.00021643,2]
[370227692,1751917854051,-595.34,0.00021917,2]
[370227694,1751917854060,-595.34,0.00022191,2]
[370227696,1751917854069,-411.40719154,0.000222,5]
[370227698,1751917854079,-1000.0,0.0002222,5]
[370227700,1751917854088,-1000.0,0.0002224,5]
[370227702,1751917854097,-165.20925407,0.00022247,2]
[370227704,1751917854106,-1000.0,0.0002226,5]
[370227706,1751917854115,-151.0,0.00022265,7]
[370227708,1751917854125,-244.665713,0.00022265,7]
[370227710,1751917854134,-244.665713,0.00022265,7]
[370227712,1751917854144,-857.0772436,0.00022274,2]
[370227714,1751917854154,-2639.25284612,0.00022279,6]
[370227716,1751917854163,-1000.0,0.0002228,5]
[370227718,1751917854172,-10000.0,0.000223,2]
[370227720,1751917854181,-1839.69419973,0.000223,2]
[370227722,1751917854190,-1000.0,0.000223,5]
[370227724,1751917854199,-1000.0,0.0002232,5]
[370227726,1751917854208,-158.4,0.00022336,5]
[370227728,1751917854217,-1000.0,0.0002234,5]
[370227730,1751917854227,-1000.0,0.0002236,5]
[370227731,1751917854236,-500.0,0.00022373,2]
[370227733,1751917854245,-500.0,0.00022373,2]
[370227735,1751917854254,-500.0,0.00022373,2]
[370227737,1751917854264,-500.0,0.00022373,2]
[370227739,1751917854273,-580.72165485,0.00022373,2]
[370227741,1751917854283,-500.0,0.00022373,2]
[370227743,1751917854293,-553.43519719,0.00022373,2]
[370227745,1751917854302,-442.40424492,0.00022373,2]
[370227747,1751917854311,-500.0,0.00022373,2]
[370227749,1751917854321,-500.0,0.00022373,2]
[370227751,1751917854330,-300.0,0.00022373,2]
[370227753,1751917854339,-500.0,0.00022373,2]
[370227755,1751917854349,-500.0,0.00022373,2]
[370227757,1751917854358,-500.0,0.00022373,2]
[370227759,1751917854367,-600.0,0.00022373,2]
[370227761,1751917854376,-500.0,0.00022373,2]
[370227763,1751917854385,-500.0,0.00022373,2]
[370227765,1751917854396,-500.42573378,0.00022373,2]
[370227767,1751917854405,-1000.0,0.0002238,5]
[370227769,1751917854415,-852.23329733,0.0002239,2]
[370227771,1751917854424,-500.0,0.00022399,10]
[370227773,1751917854434,-500.0,0.00022399,10]
[370227775,1751917854443,-3145.30245168,0.000224,2]
[370227777,1751917854453,-7269.3360328,0.000224,2]
[370227779,1751917854462,-86240.83565485,0.000224,2]
[370227781,1751917854472,-50178.89807338,0.000224,2]
[370227783,1751917854481,-151.0,0.000224,7]
[370227785,1751917854491,-151.0,0.000224,3]
[370227787,1751917854501,-151.0,0.000224,7]
[370227789,1751917854510,-151.342672,0.000224,7]
[370227791,1751917854519,-244.665713,0.000224,7]
[370227793,1751917854528,-244.665713,0.000224,7]
[370227795,1751917854538,-151.0,0.000224,7]
[370227797,1751917854547,-151.0,0.000224,7]
[370227799,1751917854556,-1879.24635333,0.000224,2]
[370227801,1751917854565,-151.0,0.000224,7]
[370227803,1751917854574,-151.0,0.000224,7]
[370227805,1751917854584,-151.0,0.000224,7]
[370227807,1751917854593,-151.0,0.000224,7]
[370227809,1751917854602,-151.0,0.000224,7]
[370227811,1751917854611,-151.0,0.000224,7]
[370227813,1751917854621,-151.0,0.000224,7]
[370227814,1751917854630,-151.0,0.000224,7]
[370227816,1751917854640,-151.0,0.000224,7]
[370227818,1751917854649,-151.0,0.000224,7]
[370227820,1751917854659,-151.0,0.000224,7]
[370227822,1751917854668,-151.0,0.000224,7]
[370227824,1751917854677,-151.0,0.000224,7]
[370227826,1751917854686,-151.0,0.000224,7]
[370227828,1751917854695,-1000.0,0.000224,5]
[370227830,1751917854705,-243.070235,0.000224,7]
[370227832,1751917854714,-243.070235,0.000224,7]
[370227834,1751917854724,-151.0,0.000224,7]
[370227836,1751917854733,-151.0,0.000224,7]
[370227838,1751917854742,-151.0,0.000224,7]
[370227840,1751917854751,-259.101356,0.000224,7]
[370227842,1751917854760,-278.291369,0.000224,7]
[370227844,1751917854770,-259.101356,0.000224,7]
[370227846,1751917854779,-278.291369,0.000224,7]
[370227848,1751917854788,-602.541065,0.000224,7]
[370227850,1751917854806,-602.541065,0.000224,7]
[370227852,1751917854816,-190.247934,0.000224,7]
[370227854,1751917854826,-429.086189,0.000224,30]
[370227856,1751917854835,-151.0,0.000224,7]
[370227858,1751917854844,-151.0,0.000224,7]
[370227860,1751917854856,-166.696433,0.000224,7]
[370227862,1751917854866,-166.696433,0.000224,7]
[370227864,1751917854876,-151.0,0.000224,7]
[370227866,1751917854887,-245.119118,0.000224,7]
[370227868,1751917854898,-245.119118,0.000224,7]
[370227870,1751917854907,-5000.0,0.00022406,2]
[370227872,1751917854916,-500.0,0.00022413,10]
[370227874,1751917854927,-18461.6696393,0.00022414,2]
[370227876,1751917854936,-1851.03,0.00022432,3]
[370227878,1751917854945,-326.80042191,0.00022438,2]
[370227880,1751917854955,-5687.88330584,0.00022448,2]
[370227882,1751917854965,-2639.25284612,0.00022452,7]
[370227884,1751917854974,-500.0,0.00022464,10]
[370227885,1751917854984,-244.665713,0.00022465,7]
[370227887,1751917854994,-244.665713,0.00022465,7]
[370227889,1751917855003,-151.0,0.00022465,7]
[370227891,1751917855012,-261.495596,0.00022465,7]
[370227893,1751917855021,-151.0,0.00022465,7]
[370227895,1751917855031,-151.0,0.00022465,7]
[370227897,1751917855041,-243.070235,0.00022465,7]
[370227899,1751917855050,-243.070235,0.00022465,7]
[370227901,1751917855060,-220.495904,0.00022465,7]
[370227903,1751917855069,-151.0,0.00022465,7]
[370227905,1751917855079,-460.0,0.00022465,2]
[370227907,1751917855088,-259.101356,0.00022465,7]
[370227909,1751917855098,-278.291369,0.00022465,7]
[370227911,1751917855107,-259.101356,0.00022465,7]
[370227913,1751917855116,-278.291369,0.00022465,7]
[370227915,1751917855125,-602.541065,0.00022465,7]
[370227917,1751917855135,-602.541065,0.00022465,7]
[370227919,1751917855145,-151.0,0.00022465,7]
[370227921,1751917855154,-151.0,0.00022465,7]
[370227923,1751917855164,-460.0,0.00022465,2]
[370227925,1751917855174,-460.0,0.00022465,2]
[370227927,1751917855184,-1121.76,0.00022465,2]
[370227929,1751917855193,-166.696433,0.00022465,7]
[370227931,1751917855202,-166.696433,0.00022465,7]
[370227933,1751917855211,-772.99,0.00022465,2]
[370227935,1751917855221,-909.79,0.00022465,2]
[370227937,1751917855230,-1136.17,0.00022465,2]
[370227939,1751917855240,-151.0,0.00022465,7]
[370227941,1751917855249,-245.119118,0.00022465,7]
[370227943,1751917855258,-1463.16,0.00022465,2]
[370227945,1751917855267,-245.119118,0.00022465,7]
[370227947,1751917855276,-813.04,0.00022465,2]
[370227949,1751917855285,-1159.48,0.00022465,2]
[370227951,1751917855294,-871.71,0.00022465,2]
[370227953,1751917855304,-904.53,0.00022465,2]
[370227955,1751917855313,-460.0,0.00022465,2]
[370227957,1751917855322,-460.0,0.00022465,2]
[370227959,1751917855332,-1153.31,0.00022465,2]
[370227960,1751917855341,-460.0,0.00022465,2]
[370227962,1751917855350,-1817.98,0.00022465,2]
[370227964,1751917855360,-460.0,0.00022465,2]
[370227966,1751917855369,-2903.1,0.00022465,2]
[370227968,1751917855378,-531.0,0.00022465,2]
[370227970,1751917855387,-460.0,0.00022465,2]
[370227972,1751917855396,-527.16,0.00022465,2]
[370227974,1751917855411,-936.21,0.00022465,2]
[370227976,1751917855421,-1377.51,0.00022465,2]
[370227978,1751917855430,-2456.52,0.00022465,2]
[370227980,1751917855439,-928.84,0.00022465,2]
[370227981,1751917855448,-595.34,0.00022465,2]
[370227982,1751917855457,-500.0,0.00022479,10]
[370227983,1751917855466,-46953.23830088,0.0002248,2]
[370227985,1751917855652,-835.43677005,0.0002248,2]
[370227997,1751917855757,-460.0,0.00020821,2]
[370227999,1751917855767,-460.0,0.00021095,2]
[370228001,1751917855776,-460.0,0.00021369,2]
[370228003,1751917855786,-460.0,0.00021643,2]
[370228005,1751917855795,-460.0,0.00021917,2]
[370228007,1751917855804,-261.76,0.00022191,2]
[370228009,1751917855814,-421.98,0.0002248,2]
[370228011,1751917855826,-27009.30492907,0.0002248,2]
[370228013,1751917855835,-151.0,0.0002248,7]
[370228015,1751917855844,-151.0,0.0002248,7]
[370228017,1751917855855,-151.0,0.0002248,7]
[370228019,1751917855865,-151.0,0.0002248,7]
[370228021,1751917855875,-151.0,0.0002248,7]
[370228023,1751917855884,-151.0,0.0002248,7]
[370228025,1751917855896,-270.074768,0.0002248,2]
[370228027,1751917855905,-270.074768,0.0002248,2]
[370228029,1751917855915,-705.450261,0.0002248,7]
[370228031,1751917855924,-705.450261,0.0002248,7]
[370228033,1751917855934,-500.0,0.00022489,10]
[370228035,1751917855945,-500.0,0.00022489,10]
[370228037,1751917855954,-500.0,0.00022489,10]
[370228039,1751917855963,-48773.43753355,0.0002249,7]
[370228041,1751917855975,-22978.04090151,0.0002249,7]
[370228044,1751917855987,-1193.04204741,0.0002249,7]
[370228046,1751917855998,-841.80544865,0.0002249,7]
[370228048,1751917856009,-5000.0,0.0002249,7]
[370228050,1751917856020,-1255.03957672,0.0002249,7]
[370228052,1751917856031,-35342.16839377,0.0002249,7]
[370229755,1751918640193,253.716974,0.00013699,2]
[370229757,1751918732131,-500.0,0.00019077,2]
[370229758,1751918732154,-300.0,0.00019077,2]
[370229759,1751918732176,-267.0,0.00019077,2]
[370229760,1751918732198,-183.26597263,0.00019077,2]
[370229761,1751918746118,-1016.73402737,0.00019077,2]
[370229762,1751918746141,-300.0,0.00019077,2]
[370229763,1751918746173,-160.0,0.00019078,2]
[370229764,1751918746196,-784.4169805,0.00019078,2]
[370229766,1751918803087,-153.26257511,0.00019077,2]
[370229806,1751919032182,-567.0481297,0.000189,2]
[370230374,1751919038204,-725.39204965,0.000189,2]
[370230376,1751919038214,-300.0,0.00019077,2]
[370230379,1751919038224,-300.0,0.00019077,2]
[370230380,1751919038234,-1234.81634777,0.00019078,2]
[370230383,1751919038243,-15812.71449342,0.00019078,2]
[370230386,1751919038252,-637.3207179,0.00019177,2]
[370230389,1751919038262,-425.06747252,0.00019177,2]
[370230391,1751919038271,-460.0,0.00019178,2]
[370230393,1751919038280,-460.0,0.00019178,2]
[370230395,1751919038290,-460.0,0.00019178,2]
[370230397,1751919038299,-460.0,0.00019178,2]
[370230399,1751919038308,-460.0,0.00019178,2]
[370230401,1751919038318,-460.0,0.00019178,2]
[370230403,1751919038328,-460.0,0.00019178,2]
[370230405,1751919038337,-460.0,0.00019178,2]
[370230407,1751919038347,-460.0,0.00019178,2]
[370230409,1751919038356,-460.0,0.00019178,2]
[370230411,1751919038365,-460.0,0.00019178,2]
[370230413,1751919038375,-460.0,0.00019178,2]
[370230415,1751919038385,-460.0,0.00019178,2]
[370230417,1751919038395,-283.58185703,0.00019178,2]
[370230419,1751919038405,-460.0,0.00019178,2]
[370230421,1751919038415,-460.0,0.00019178,2]
[370230423,1751919038424,-460.0,0.00019178,2]
[370230425,1751919038434,-460.0,0.00019178,2]
[370230427,1751919038444,-460.0,0.00019178,2]
[370230429,1751919038455,-323.45902304,0.00019178,2]
[370230431,1751919038464,-170.14999939,0.00019178,2]
[370230433,1751919038474,-460.0,0.00019178,2]
[370230435,1751919038483,-500.0,0.00019178,2]
[370230437,1751919038494,-460.0,0.00019178,2]
[370230439,1751919038505,-460.0,0.00019178,2]
[370230441,1751919038514,-460.0,0.00019178,2]
[370230443,1751919038523,-505.01,0.00019178,2]
[370230445,1751919038532,-460.0,0.00019178,2]
[370230447,1751919038541,-460.0,0.00019178,2]
[370230449,1751919038550,-460.0,0.00019178,2]
[370230451,1751919038559,-460.0,0.00019178,2]
[370230453,1751919038568,-460.0,0.00019178,2]
[370230455,1751919038578,-460.0,0.00019178,2]
[370230456,1751919038587,-460.0,0.00019178,2]
[370230458,1751919038596,-460.0,0.00019178,2]
[370230460,1751919038607,-460.0,0.00019178,2]
[370230462,1751919038616,-460.0,0.00019178,2]
[370230464,1751919038626,-460.0,0.00019178,2]
[370230467,1751919038636,-460.0,0.00019178,2]
[370230468,1751919038645,-460.0,0.00019178,2]
[370230470,1751919038655,-460.0,0.00019178,2]
[370230473,1751919038665,-460.0,0.00019178,2]
[370230475,1751919038674,-460.0,0.00019178,2]
[370230476,1751919038683,-460.0,0.00019178,2]
[370230478,1751919038694,-460.0,0.00019178,2]
[370230480,1751919038704,-241.70818429,0.00019178,2]
[370230483,1751919038716,-218.29181571,0.00019178,2]
[370230485,1751919038726,-460.0,0.00019178,2]
[370230487,1751919038735,-460.0,0.00019178,2]
[370230489,1751919038744,-460.0,0.00019178,2]
[370230491,1751919038753,-460.0,0.00019178,2]
[370230493,1751919038762,-460.0,0.00019178,2]
[370230495,1751919038772,-460.0,0.00019178,2]
[370230497,1751919038781,-460.0,0.00019178,2]
[370230499,1751919038790,-460.0,0.00019178,2]
[370230501,1751919038802,-460.0,0.00019178,2]
[370230503,1751919038811,-460.0,0.00019178,2]
[370230505,1751919038820,-460.0,0.00019178,2]
[370230507,1751919038829,-460.0,0.00019178,2]
[370230509,1751919038839,-460.0,0.00019178,2]
[370230511,1751919038849,-460.0,0.00019178,2]
[370230513,1751919038858,-460.0,0.00019178,2]
[370230515,1751919038867,-460.0,0.00019178,2]
[370230517,1751919038876,-460.0,0.00019178,2]
[370230519,1751919038885,-460.0,0.00019178,2]
[370230521,1751919038894,-460.0,0.00019178,2]
[370230522,1751919038903,-460.0,0.00019178,2]
[370230524,1751919038913,-460.0,0.00019178,2]
[370230526,1751919038922,-500.0,0.00019178,2]
[370230528,1751919038931,-460.0,0.00019178,2]
[370230530,1751919038940,-460.0,0.00019178,2]
[370230532,1751919038950,-305.2,0.00019178,2]
[370230534,1751919038960,-460.0,0.00019178,2]
[370230536,1751919038969,-3011.52,0.00019178,2]
[370230538,1751919038979,-460.0,0.00019178,2]
[370230540,1751919038989,-460.0,0.00019178,2]
[370230542,1751919038999,-460.0,0.00019178,2]
[370230544,1751919039008,-460.0,0.00019178,2]
[370230546,1751919039018,-460.0,0.00019178,2]
[370230548,1751919039027,-638.76,0.00019178,2]
[370230550,1751919039037,-1010.6,0.00019178,2]
[370230552,1751919039046,-460.0,0.00019178,2]
[370230554,1751919039055,-460.0,0.00019178,2]
[370230556,1751919039065,-460.0,0.00019178,2]
[370230558,1751919039074,-214.81813366,0.00019178,2]
[370230560,1751919039083,-460.0,0.00019178,2]
[370230562,1751919039092,-1125.48,0.00019178,2]
[370230564,1751919039102,-460.0,0.00019178,2]
[370230566,1751919039111,-460.0,0.00019178,2]
[370230568,1751919039121,-460.0,0.00019178,2]
[370230570,1751919039131,-460.0,0.00019178,2]
[370230572,1751919039140,-460.0,0.00019178,2]
[370230574,1751919039150,-460.0,0.00019178,2]
[370230576,1751919039159,-460.0,0.00019178,2]
[370230578,1751919039168,-460.0,0.00019178,2]
[370230580,1751919039179,-1266.35,0.00019178,2]
[370230582,1751919039189,-460.0,0.00019178,2]
[370230584,1751919039200,-459.616409,0.00019178,2]
[370230586,1751919039213,-0.383591,0.00019178,2]
[370230588,1751919039222,-460.0,0.00019178,2]
[370230590,1751919039231,-460.0,0.00019178,2]
[370230592,1751919039241,-460.0,0.00019178,2]
[370230594,1751919039251,-460.0,0.00019178,2]
[370230596,1751919039261,-259.47504407,0.00019178,2]
[370230598,1751919039272,-539.94495593,0.00019178,2]
[370230600,1751919039282,-460.0,0.00019178,2]
[370230602,1751919039291,-460.0,0.00019178,2]
[370230604,1751919039301,-460.0,0.00019178,2]
[370230606,1751919039310,-460.0,0.00019178,2]
[370230608,1751919039320,-460.0,0.00019178,2]
[370230610,1751919039329,-460.0,0.00019178,2]
[370230612,1751919039338,-460.0,0.00019178,2]
[370230614,1751919039348,-460.0,0.00019178,2]
[370230616,1751919039357,-460.0,0.00019178,2]
[370230618,1751919039367,-460.0,0.00019178,2]
[370230620,1751919039376,-460.0,0.00019178,2]
[370230622,1751919039386,-460.0,0.00019178,2]
[370230624,1751919039395,-1711.49,0.00019178,2]
[370230626,1751919039405,-460.0,0.00019178,2]
[370230628,1751919039414,-460.0,0.00019178,2]
[370230630,1751919039424,-460.0,0.00019178,2]
[370230632,1751919039433,-460.0,0.00019178,2]
[370230634,1751919039442,-460.0,0.00019178,2]
[370230636,1751919039452,-463.43082373,0.00019178,2]
[370230638,1751919039461,-587.07091516,0.00019178,2]
[370230640,1751919039474,-717.84908484,0.00019178,2]
[370230642,1751919039483,-460.0,0.00019178,2]
[370230644,1751919039493,-546.23,0.00019178,2]
[370230646,1751919039504,-460.0,0.00019178,2]
[370230648,1751919039513,-565.48,0.00019178,2]
[370230650,1751919039522,-460.0,0.00019178,2]